bitfinex/quotes_ETHUSD_20210701
["timestamp","ask_amount","ask_price","bid_price","bid_amount"]
[1625119006849,6.77098,2215.2,2215.1,0.00973925]
[1625119007701,12.9587955,2215.2,2215.1,0.00973925]
[1625119007805,5.01,2215.0,2214.7,0.01037934]
[1625119008066,6.77208,2214.9,2214.7,0.01037934]
[1625119010405,4.527,2215.0,2214.7,0.01037934]
[1625119013599,9.00135913,2215.1,2214.7,0.01037934]
[1625119013698,8.00165913,2215.1,2214.7,0.01037934]
[1625119013797,6.78145913,2215.1,2214.7,0.01037934]
[1625119016211,0.01005913,2215.1,2214.7,0.01037934]
[1625119019727,20.9698,2215.2,2214.7,0.01037934]
[1625119020630,20.9698,2215.2,2214.9,0.01005913]
[1625119021657,27.74081,2215.2,2214.9,0.01005913]
[1625119022256,0.08,2215.1,2214.9,0.01005913]
[1625119022356,3.4149,2215.1,2214.9,0.01005913]
[1625119022558,3.3349,2215.1,2214.9,0.01005913]
[1625119022757,10.10621,2215.1,2214.9,0.01005913]
[1625119024509,3.3349,2215.1,2214.9,0.01005913]
[1625119026404,9.47606873,2215.1,2214.9,0.01005913]
[1625119026503,3.3349,2215.1,2214.9,0.01005913]
[1625119026605,3.3749,2215.1,2214.9,0.01005913]
[1625119026702,3.3749,2215.1,2214.7,0.01037934]
[1625119026703,25.25,2215.0,2214.7,3.847e-05]
[1625119026807,27.2,2214.9,2214.3,6.78243824]
[1625119026909,6.84419707,2214.7,2214.3,0.01101824]
[1625119027105,6.85489633,2214.7,2214.3,0.01101824]
[1625119027206,9.2062457,2214.7,2214.3,0.01101824]
[1625119027305,0.06,2214.6,2214.3,0.01101824]
[1625119027404,4.15,2214.6,2214.3,0.01101824]
[1625119027510,6.29296513,2214.5,2214.3,0.01101824]
[1625119027805,4.09,2214.6,2214.3,0.01101824]
[1625119027952,6.7728,2214.5,2214.3,0.01101824]
[1625119028655,12.90058718,2214.5,2214.3,0.01101824]
[1625119028855,6.7728,2214.5,2214.3,0.01101824]
[1625119028956,5.782,2214.5,2214.3,0.01101824]
[1625119029256,22.1,2214.4,2213.9,0.01165071]
[1625119029355,6.25858836,2214.3,2213.9,0.01165071]
[1625119029557,0.01133561,2214.3,2213.9,0.01165071]
[1625119030056,6.15822444,2214.3,2213.2,11.42527]
[1625119030162,6.15822444,2214.3,2213.2,0.14]
[1625119030163,6.77438,2214.0,2213.2,0.14]
[1625119030263,6.2039355,2213.9,2213.2,0.14]
[1625119030360,12.80898,2214.0,2213.2,0.14]
[1625119030461,15.20309874,2214.0,2213.3,0.08]
[1625119030560,6.2399,2214.0,2213.2,0.14]
[1625119030761,12.36853015,2214.0,2213.2,0.14]
[1625119030859,12.36853015,2214.0,2213.3,0.2]
[1625119031062,12.36853015,2214.0,2213.2,0.14]
[1625119031361,12.36853015,2214.0,2213.2,5.15]
[1625119031563,6.2399,2214.0,2213.5,6.77354]
[1625119031761,6.2399,2214.0,2213.5,12.82249583]
[1625119031861,6.2399,2214.0,2213.6,0.06]
[1625119031972,4.7213,2214.0,2213.7,5.01]
[1625119032063,0.01133561,2214.3,2213.8,7.33394853]
[1625119032162,0.01133561,2214.3,2213.8,7.67394853]
[1625119032261,0.01133561,2214.3,2213.8,15.67394853]
[1625119032411,0.01133561,2214.3,2214.0,5.01]
[1625119032612,0.01133561,2214.3,2214.1,0.14]
[1625119032713,0.01133561,2214.3,2214.2,23.77047]
[1625119032817,0.01133561,2214.3,2214.2,37.6927514]
[1625119032914,0.01133561,2214.3,2214.2,37.8327514]
[1625119033014,0.01133561,2214.3,2214.2,38.0327514]
[1625119034315,0.01133561,2214.3,2214.2,32.11047]
[1625119034751,11.0,2215.0,2214.3,14.8]
[1625119034951,11.0,2215.0,2214.5,5.01]
[1625119035151,11.0,2215.0,2214.6,5.15]
[1625119035353,11.0,2215.0,2214.7,0.04]
[1625119035555,11.0,2215.0,2214.7,0.18]
[1625119035755,11.0,2215.0,2214.7,12.97922174]
[1625119035858,0.0001,2215.0,2214.7,12.97922174]
[1625119036056,0.0001,2215.0,2214.9,5.01]
[1625119036157,0.0001,2215.0,2214.9,42.42427543]
[1625119036256,0.0001,2215.0,2214.9,45.71427543]
[1625119036357,0.00910288,2215.7,2215.0,30.58319]
[1625119036454,0.00910288,2215.7,2215.0,32.95180107]
[1625119036556,0.00910288,2215.7,2215.2,5.01]
[1625119036656,0.00910288,2215.7,2215.3,3.29]
[1625119036755,0.00910288,2215.7,2215.5,5.01]
[1625119036913,0.00910288,2215.7,2215.6,19.7157]
[1625119037114,0.00910288,2215.7,2215.6,27.8557]
[1625119037310,0.00910288,2215.7,2215.6,31.1457]
[1625119037411,0.00910288,2215.7,2215.6,40.5457]
[1625119037512,0.00910288,2215.7,2215.6,40.7457]
[1625119037917,2.88e-06,2215.7,2215.6,40.7457]
[1625119038165,2.88e-06,2215.7,2215.6,45.80011782]
[1625119038363,2.88e-06,2215.7,2215.6,36.40011782]
[1625119038564,2.88e-06,2215.7,2215.6,23.45011782]
[1625119038665,2.88e-06,2215.7,2215.6,20.9957]
[1625119039795,2.88e-06,2215.7,2215.6,21.8957]
[1625119040396,7.45144244,2217.0,2215.6,21.8957]
[1625119040600,7.45144244,2217.0,2215.8,5.01]
[1625119040796,7.45144244,2217.0,2215.9,5.74]
[1625119040951,7.45144244,2217.0,2215.9,5.94]
[1625119041507,7.45144244,2217.0,2215.9,0.34]
[1625119042011,7.45144244,2217.0,2215.9,8.34]
[1625119042863,6.43363678,2217.1,2215.9,0.34]
[1625119042968,30.3242,2217.2,2215.9,0.34]
[1625119043064,6.42681119,2217.1,2215.9,0.34]
[1625119043362,6.42681119,2217.1,2215.9,15.29]
[1625119043363,0.1082,2216.0,2215.9,15.29]
[1625119043465,0.1082,2216.0,2215.9,24.3103]
[1625119044700,0.0082,2216.0,2215.9,9.3603]
[1625119045202,0.0082,2216.0,2215.9,17.3603]
[1625119045401,0.0082,2216.0,2215.9,9.3603]
[1625119048761,0.0082,2216.0,2215.9,0.34]
[1625119048859,0.0082,2216.0,2215.9,0.2]
[1625119049059,4.7732,2216.0,2215.9,0.2]
[1625119049160,4.7732,2216.0,2215.3,0.14]
[1625119049420,10.98640403,2216.0,2215.3,0.14]
[1625119049619,4.7732,2216.0,2215.3,0.14]
[1625119050428,4.7732,2216.0,2215.3,6.90785]
[1625119054344,4.7732,2216.0,2215.3,0.14]
[1625119054443,6.24227589,2215.9,2215.1,6.7685]
[1625119055009,4.7732,2216.0,2215.1,6.7685]
[1625119055709,6.28787398,2215.9,2215.1,6.7685]
[1625119056013,4.7732,2216.0,2215.1,6.7685]
[1625119056213,4.7732,2216.0,2215.2,0.06]
[1625119056314,4.7732,2216.0,2215.3,5.01]
[1625119056512,4.7732,2216.0,2215.4,0.14]
[1625119056611,4.7732,2216.0,2215.4,0.34]
[1625119056811,4.7732,2216.0,2215.5,0.06]
[1625119057014,4.7732,2216.0,2215.6,0.14]
[1625119058067,4.7732,2216.0,2215.6,6.90706]
[1625119058966,4.7732,2216.0,2215.6,0.14]
[1625119062559,4.7732,2216.0,2215.5,6.76795]
[1625119063663,6.22057071,2215.9,2215.3,9.16264]
[1625119063759,6.37248369,2215.9,2215.1,6.76897]
[1625119064023,6.37248369,2215.9,2215.0,0.14]
[1625119064127,0.01131727,2215.8,2214.5,10.8034]
[1625119064225,0.01131727,2215.8,2214.7,0.14]
[1625119064825,6.7701,2215.6,2214.9,6.76964]
[1625119064930,6.6701,2215.6,2214.9,6.76964]
[1625119065027,1.1276,2215.7,2214.9,6.76964]
[1625119066260,6.77008,2215.6,2214.7,6.91008]
[1625119066459,13.06811845,2215.6,2214.7,6.91008]
[1625119066659,6.77008,2215.6,2214.7,6.91008]
[1625119066863,1.1276,2215.7,2214.7,6.91008]
[1625119066963,1.1276,2215.7,2214.8,0.14]
[1625119067360,7.89733,2215.7,2214.9,6.76959]
[1625119067862,1.1276,2215.7,2214.7,0.14]
[1625119068324,6.23710014,2215.6,2214.7,0.14]
[1625119068872,13.00719014,2215.6,2214.7,6.91009]
[1625119069472,13.00719014,2215.6,2214.7,0.14]
[1625119069570,13.00719014,2215.6,2214.6,6.85]
[1625119069869,28.00719014,2215.6,2214.6,6.85]
[1625119070173,28.00719014,2215.6,2214.5,0.14]
[1625119070277,5.01,2215.4,2214.5,0.14]
[1625119070375,8.639,2215.4,2214.2,0.14]
[1625119070473,22.36822288,2215.3,2214.2,0.14]
[1625119070574,22.36822288,2215.3,2214.1,6.85]
[1625119070810,5.01,2215.1,2214.1,6.85]
[1625119070910,21.4133242,2215.0,2214.1,6.85]
[1625119071513,6.77265,2214.8,2214.1,6.85]
[1625119071612,10.72505,2214.8,2214.1,6.85]
[1625119071713,17.08891795,2214.8,2214.1,6.85]
[1625119071812,6.29144862,2214.7,2214.1,6.85]
[1625119072018,3.61998506,2214.7,2214.1,6.85]
[1625119072117,12.25765,2214.8,2214.1,6.85]
[1625119072768,12.25765,2214.8,2214.2,6.06353176]
[1625119072931,3.9524,2214.8,2214.2,5.95636157]
[1625119073027,52.02221,2215.4,2214.1,6.99]
[1625119073129,0.01968981,2215.3,2214.3,0.18]
[1625119073231,5.01,2215.2,2214.2,6.04706233]
[1625119073428,20.01,2215.2,2214.2,6.04706233]
[1625119073631,20.01,2215.2,2214.1,6.99]
[1625119074035,5.01,2215.2,2214.2,6.0506976]
[1625119074136,5.01,2215.2,2214.2,6.06796411]
[1625119074433,11.78146,2215.2,2214.3,0.08]
[1625119074533,11.78146,2215.2,2214.2,12.83935411]
[1625119074935,26.78146,2215.2,2214.2,12.83935411]
[1625119075283,26.78146,2215.2,2214.2,6.06796411]
[1625119076879,26.767237,2215.2,2214.2,6.06796411]
[1625119077939,11.767237,2215.2,2214.2,6.06796411]
[1625119078043,11.767237,2215.2,2214.2,12.83971411]
[1625119078142,11.767237,2215.2,2214.3,0.06]
[1625119078239,11.767237,2215.2,2214.2,6.06796411]
[1625119078339,6.77146,2215.2,2214.2,6.06796411]
[1625119078444,22.9835,2215.4,2214.3,0.14]
[1625119078641,22.9835,2215.4,2214.3,0.34]
[1625119078840,22.9835,2215.4,2214.3,0.14]
[1625119078939,22.9835,2215.4,2214.4,0.04]
[1625119079039,6.7713,2215.2,2214.4,0.04]
[1625119079141,6.7713,2215.2,2214.4,6.22104852]
[1625119079243,6.7713,2215.2,2214.4,6.24248799]
[1625119079538,6.7713,2215.2,2214.4,0.14]
[1625119079680,6.7713,2215.2,2214.4,6.07215409]
[1625119079870,27.9935,2215.4,2214.4,6.07215409]
[1625119079970,22.9835,2215.4,2214.5,0.16]
[1625119080171,29.7543,2215.4,2214.6,6.9104]
[1625119080371,8.7708,2215.4,2214.6,6.9104]
[1625119080471,2.0,2215.4,2214.6,6.9104]
[1625119080571,2.0,2215.6,2214.6,6.9104]
[1625119080671,5.01,2215.5,2214.7,0.16]
[1625119080773,5.01,2215.5,2214.8,0.1]
[1625119081275,26.78028,2215.5,2214.4,6.52711508]
[1625119081375,27.17067,2215.5,2214.4,6.52711508]
[1625119081472,27.17067,2215.5,2214.3,0.14]
[1625119081574,5.01,2215.4,2214.1,6.51232199]
[1625119081677,20.01,2215.4,2214.1,6.51232199]
[1625119081777,5.01,2215.3,2214.1,6.51232199]
[1625119081949,5.01,2215.2,2214.1,6.51232199]
[1625119082348,6.7719,2215.0,2214.1,13.28452199]
[1625119082448,11.5362,2215.0,2214.1,13.28452199]
[1625119082647,11.5362,2215.0,2214.2,0.1]
[1625119083276,11.5362,2215.0,2214.1,13.28452199]
[1625119087417,26.5362,2215.0,2214.1,6.7722]
[1625119087619,26.5362,2215.0,2214.1,12.75843397]
[1625119088218,11.5362,2215.0,2214.1,12.75843397]
[1625119088320,11.5362,2215.0,2214.2,0.04]
[1625119088673,4.7643,2215.0,2214.2,0.04]
[1625119088775,1.4357,2215.1,2214.2,0.04]
[1625119088871,3.38614,2215.2,2214.2,0.04]
[1625119088974,31.762,2215.4,2214.3,0.32]
[1625119089073,31.762,2215.4,2214.3,5.33]
[1625119089271,31.762,2215.4,2214.4,6.0964341]
[1625119089373,21.2183,2215.4,2214.5,0.08]
[1625119089573,21.2183,2215.4,2214.7,6.77031]
[1625119089574,27.98908,2215.4,2214.7,6.77031]
[1625119089676,6.32190553,2215.3,2214.6,0.2]
[1625119089793,6.32190553,2215.3,2214.4,0.14]
[1625119091429,13.09290553,2215.3,2214.4,0.14]
[1625119091532,13.09290553,2215.3,2214.3,9.02757]
[1625119093033,13.09290553,2215.3,2214.4,0.14]
[1625119093255,6.771,2215.3,2214.4,0.14]
[1625119093361,4.54302,2215.4,2214.4,6.21748962]
[1625119093456,1.1572,2215.4,2214.5,0.1]
[1625119093608,2.0,2215.5,2214.5,0.1]
[1625119093708,2.0,2215.5,2214.6,0.28]
[1625119093808,2.0,2215.5,2214.6,0.14]
[1625119093906,2.0,2215.5,2214.7,0.14]
[1625119094210,2.0,2215.5,2214.8,0.04]
[1625119094410,6.77047,2215.5,2214.8,6.81006]
[1625119094609,6.77047,2215.5,2214.9,0.18]
[1625119095008,6.77047,2215.5,2214.8,6.77006]
[1625119096026,18.72324862,2215.7,2214.8,6.77006]
[1625119096130,9.69606862,2215.7,2214.8,6.77006]
[1625119096227,3.38516,2215.7,2214.8,6.77006]
[1625119096427,3.38516,2215.7,2214.9,0.06]
[1625119096831,9.76426675,2215.7,2214.7,0.14]
[1625119096930,9.89429783,2215.7,2214.7,0.14]
[1625119097128,6.7702,2215.5,2214.9,6.7698]
[1625119097976,6.7702,2215.5,2214.7,0.14]
[1625119098078,6.7702,2215.5,2214.7,6.91035]
[1625119098535,1.5981,2215.6,2214.7,6.91035]
[1625119098637,1.5981,2215.6,2214.8,0.18]
[1625119099332,9.89429783,2215.7,2214.8,0.18]
[1625119099734,9.89429783,2215.7,2214.8,9.20599]
[1625119099976,9.89429783,2215.7,2214.8,9.02599]
[1625119100574,3.38516,2215.7,2214.8,9.02599]
[1625119101476,6.77023,2215.5,2214.8,9.02599]
[1625119101925,1.3137,2215.6,2214.8,9.02599]
[1625119102028,3.38516,2215.7,2214.9,0.06]
[1625119102193,16.99432916,2215.8,2214.9,0.2]
[1625119102292,10.6634,2215.8,2214.9,0.14]
[1625119102393,10.6634,2215.8,2214.9,5.15]
[1625119102494,10.6634,2215.8,2215.3,6.76877]
[1625119102597,6.2927163,2215.9,2215.3,6.76877]
[1625119102693,9.8521,2216.0,2215.3,6.76877]
[1625119102792,16.51806104,2216.1,2215.3,6.76877]
[1625119102894,3.38464,2216.1,2215.4,0.04]
[1625119102994,3.38464,2216.1,2215.3,6.76877]
[1625119103597,6.76871,2216.0,2215.3,6.76877]
[1625119103895,6.76871,2216.0,2215.4,0.04]
[1625119104564,6.76871,2216.0,2215.3,6.76877]
[1625119105066,6.76871,2216.0,2215.2,0.14]
[1625119105166,6.54754454,2215.9,2215.2,0.14]
[1625119105265,11.33979508,2215.9,2214.6,2.6]
[1625119105366,11.33979508,2215.9,2215.0,0.14]
[1625119105465,11.33979508,2215.9,2214.5,11.86]
[1625119105564,11.33979508,2215.9,2214.6,5.01]
[1625119105663,11.33979508,2215.9,2214.6,5.15]
[1625119106466,6.77034,2215.5,2214.6,5.15]
[1625119106680,13.06227874,2215.5,2214.6,5.15]
[1625119106779,13.2150987,2215.5,2214.7,0.2]
[1625119106884,6.77034,2215.5,2214.7,0.2]
[1625119106980,13.03732021,2215.5,2214.8,0.14]
[1625119107081,6.77034,2215.5,2214.5,15.87541]
[1625119107180,6.77034,2215.5,2214.6,0.14]
[1625119107380,13.08526724,2215.5,2214.6,0.14]
[1625119107481,1.7659,2215.6,2214.6,6.91058]
[1625119107582,1.7659,2215.6,2214.6,16.76475809]
[1625119107682,6.43602683,2215.7,2214.7,0.04]
[1625119107885,6.43602683,2215.7,2214.8,0.14]
[1625119108181,6.43602683,2215.7,2214.9,0.08]
[1625119108291,8.11228,2215.9,2214.9,0.08]
[1625119108383,8.11228,2215.9,2215.0,0.14]
[1625119109429,14.88124,2215.9,2215.0,0.14]
[1625119109629,6.344715,2215.8,2215.0,0.14]
[1625119110330,9.53188,2215.9,2215.0,0.14]
[1625119110530,6.76944,2215.8,2215.0,6.90936]
[1625119110630,13.07603324,2215.8,2215.0,6.90936]
[1625119110729,13.07574271,2215.8,2215.0,6.90936]
[1625119111283,6.76944,2215.8,2215.0,6.90936]
[1625119111582,6.76944,2215.8,2215.0,0.14]
[1625119111984,6.29209234,2215.7,2215.0,0.14]
[1625119112182,15.79616063,2215.9,2215.0,0.14]
[1625119113480,14.37656063,2215.9,2215.0,0.14]
[1625119113535,6.76972,2215.7,2215.0,6.90954]
[1625119114136,6.76972,2215.7,2215.1,0.04]
[1625119114439,6.76972,2215.7,2215.0,0.14]
[1625119114638,21.14582063,2215.9,2215.0,0.14]
[1625119116074,21.14582063,2215.9,2215.2,6.76912]
[1625119116675,21.14582063,2215.9,2215.0,0.14]
[1625119117575,21.14582063,2215.9,2215.0,6.90953]
[1625119117776,21.14582063,2215.9,2215.1,0.14]
[1625119117879,14.88154,2215.9,2215.1,0.14]
[1625119118179,8.11228,2215.9,2215.1,0.14]
[1625119118281,0.89782177,2216.1,2215.1,0.14]
[1625119118382,32.1772,2216.2,2215.2,5.35]
[1625119118485,21.8955,2216.2,2215.3,6.01364092]
[1625119118583,21.8955,2216.2,2215.7,6.7676]
[1625119118683,2.0,2216.2,2215.7,6.7676]
[1625119118786,2.0,2216.2,2215.8,0.04]
[1625119119233,2.0,2216.2,2215.9,0.06]
[1625119119433,2.0,2216.4,2215.9,0.06]
[1625119119636,2.0,2216.4,2215.7,6.7676]
[1625119119735,8.76745,2216.4,2215.7,6.7676]
[1625119119935,8.76745,2216.4,2215.6,0.14]
[1625119120034,5.38401,2216.4,2215.6,0.14]
[1625119120565,5.01,2216.2,2215.6,0.14]
[1625119120860,6.76863,2216.0,2215.6,0.14]
[1625119120961,14.40836,2216.4,2215.6,0.14]
[1625119121160,5.38401,2216.4,2215.7,0.2]
[1625119121361,5.38401,2216.4,2215.6,0.14]
[1625119122062,6.76802,2216.2,2215.6,0.14]
[1625119123876,6.76802,2216.2,2215.6,6.12735257]
[1625119124176,6.76802,2216.2,2215.6,0.14]
[1625119124630,6.76802,2216.2,2215.6,6.37480734]
[1625119124760,6.76802,2216.2,2215.6,13.14270734]
[1625119124846,6.76802,2216.2,2215.7,0.2]
[1625119125146,6.76802,2216.2,2215.7,6.33275325]
[1625119125249,14.40837,2216.4,2215.7,6.33275325]
[1625119125349,14.40837,2216.4,2215.7,4.7604]
[1625119125500,2.0,2216.4,2215.8,6.21414428]
[1625119125603,2.0,2216.5,2215.8,6.21414428]
[1625119125703,33.09969512,2216.8,2215.9,0.16]
[1625119125800,31.6815,2216.8,2215.9,0.3]
[1625119126000,31.6815,2216.8,2216.0,0.08]
[1625119126199,31.6815,2216.8,2216.1,0.14]
[1625119126974,38.44772,2216.8,2216.1,6.90623]
[1625119127178,27.67372,2216.8,2216.1,6.90623]
[1625119127874,27.67372,2216.8,2216.1,0.14]
[1625119129816,27.67372,2216.8,2216.0,6.76658]
[1625119131016,27.67372,2216.8,2216.1,5.9328203]
[1625119131269,27.67372,2216.8,2215.9,0.14]
[1625119131270,5.01,2216.6,2215.9,0.14]
[1625119131368,11.46431554,2216.5,2215.5,5.88024699]
[1625119131549,11.46431554,2216.5,2215.6,0.14]
[1625119131550,14.93281554,2216.5,2215.6,0.14]
[1625119131648,14.93281554,2216.5,2215.2,3.38353]
[1625119131747,14.93281554,2216.5,2215.6,0.14]
[1625119132147,14.93281554,2216.5,2215.0,6.00874666]
[1625119132249,0.01714135,2216.4,2215.3,14.1722]
[1625119132450,6.76802,2216.2,2215.5,6.76777]
[1625119132647,1.2055,2216.3,2215.5,6.76777]
[1625119133251,7.53654729,2216.3,2215.5,6.76777]
[1625119133648,1.2055,2216.3,2215.5,6.76777]
[1625119133806,7.59621712,2216.3,2215.5,6.76777]
[1625119133896,7.60575694,2216.3,2215.5,6.76777]
[1625119133992,7.60575694,2216.3,2215.6,0.1]
[1625119134094,14.37325694,2216.3,2215.6,6.86744]
[1625119134195,14.37325694,2216.3,2215.6,6.76744]
[1625119134293,14.37325694,2216.3,2215.6,6.90744]
[1625119135945,6.76772,2216.2,2215.6,6.90744]
[1625119136094,6.68593215,2216.1,2215.3,9.0222]
[1625119136193,6.68593215,2216.1,2215.3,9.1622]
[1625119136394,1.2278,2216.2,2215.3,9.1622]
[1625119136495,1.2278,2216.2,2215.4,0.12]
[1625119136596,6.2378,2216.2,2215.4,0.12]
[1625119136695,12.55167037,2216.2,2215.4,0.12]
[1625119136794,6.2378,2216.2,2215.4,0.12]
[1625119137394,6.76829,2216.1,2215.4,6.88796]
[1625119137596,5.01,2216.2,2215.5,0.14]
[1625119137798,5.01,2216.2,2215.6,0.12]
[1625119137996,5.01,2216.2,2215.3,9.1622]
[1625119138096,8.39429,2216.2,2215.3,9.1622]
[1625119138503,15.16219,2216.2,2215.5,6.76773]
[1625119138700,15.16219,2216.2,2215.6,0.08]
[1625119139401,15.16219,2216.2,2215.5,6.76773]
[1625119139498,15.11219,2216.2,2215.5,6.76773]
[1625119139999,10.10219,2216.2,2215.5,6.90773]
[1625119141252,6.76788,2216.1,2215.5,6.90773]
[1625119141553,3.33429,2216.2,2215.5,6.90773]
[1625119141652,3.33429,2216.2,2215.6,0.08]
[1625119141752,9.02364,2216.4,2215.6,0.08]
[1625119141953,9.02364,2216.4,2215.5,0.14]
[1625119142603,6.76732,2216.3,2215.6,6.76746]
[1625119142788,6.76732,2216.3,2215.5,0.14]
[1625119142952,3.38368,2216.5,2215.6,0.1]
[1625119143049,33.46021242,2216.8,2215.6,15.69588656]
[1625119143147,33.46021242,2216.8,2215.7,0.14]
[1625119143148,20.9075,2216.8,2215.7,0.14]
[1625119143248,2.0,2217.0,2215.8,5.01]
[1625119143351,2.0,2217.0,2216.0,3.0]
[1625119143523,24.90810787,2217.2,2216.0,3.0]
[1625119143524,14.6631,2217.2,2216.0,3.0]
[1625119143619,21.2846269,2217.3,2216.5,6.76448]
[1625119143620,28.0492269,2217.3,2216.5,6.76448]
[1625119143725,27.3965,2217.3,2216.6,6.19576961]
[1625119143922,27.3965,2217.3,2216.7,0.14]
[1625119144220,20.6319,2217.3,2216.7,0.14]
[1625119145953,27.39632,2217.3,2216.7,0.14]
[1625119146352,6.76442,2217.3,2216.7,0.14]
[1625119146453,15.92109918,2217.6,2216.7,6.34416681]
[1625119146552,15.92109918,2217.6,2216.8,0.1]
[1625119146753,16.44122686,2217.6,2216.8,0.1]
[1625119146954,16.30868768,2217.6,2216.8,0.1]
[1625119147054,16.30868768,2217.6,2216.7,7.96750715]
[1625119147397,6.76415,2217.4,2216.7,14.73138715]
[1625119147493,6.76415,2217.4,2216.7,8.26328]
[1625119147696,6.76415,2217.4,2216.7,1.4994]
[1625119148395,6.76415,2217.4,2216.7,0.14]
[1625119149942,6.76415,2217.4,2216.7,6.08433395]
[1625119150042,6.76415,2217.4,2216.7,0.14]
[1625119150145,6.76415,2217.4,2216.7,6.07919204]
[1625119150243,6.76415,2217.4,2216.7,0.14]
[1625119150343,6.76415,2217.4,2216.7,6.11320715]
[1625119150447,6.76415,2217.4,2216.8,0.06]
[1625119150844,6.66415,2217.4,2216.8,0.06]
[1625119151547,6.66415,2217.4,2216.7,6.10513238]
[1625119151800,6.66415,2217.4,2216.7,0.14]
[1625119151902,6.66415,2217.4,2216.8,5.99209985]
[1625119152205,6.66415,2217.4,2216.7,6.16607011]
[1625119152303,6.66415,2217.4,2216.7,6.19145782]
[1625119152405,6.66415,2217.4,2216.7,6.90377]
[1625119152504,15.78856,2217.6,2216.8,0.14]
[1625119152603,15.78856,2217.6,2216.8,6.10972103]
[1625119152604,4.51038,2217.6,2216.8,6.10972103]
[1625119152705,4.51038,2217.6,2216.8,0.14]
[1625119152903,4.51038,2217.6,2216.7,0.14]
[1625119153805,6.76376,2217.5,2216.8,6.76345]
[1625119154668,6.76376,2217.5,2216.7,0.14]
[1625119155569,6.76376,2217.5,2216.7,6.12982245]
[1625119155668,6.76376,2217.5,2216.7,0.14]
[1625119157406,6.76376,2217.5,2216.3,9.01931]
[1625119157407,5.01,2217.3,2216.3,9.01931]
[1625119157508,7.01015174,2217.2,2216.4,0.14]
[1625119157603,12.04051515,2217.2,2216.0,15.209909]
[1625119157703,6.76595,2216.8,2216.1,6.9056]
[1625119157806,6.76595,2216.8,2216.0,9.07043]
[1625119157807,4.1058,2216.8,2216.0,9.07043]
[1625119158105,4.1058,2216.8,2216.1,0.2]
[1625119158556,4.1058,2216.8,2216.1,6.14723828]
[1625119158660,4.1058,2216.8,2216.1,0.2]
[1625119158758,4.1058,2216.8,2216.1,6.13108929]
[1625119159060,4.1058,2216.8,2216.1,0.2]
[1625119159160,10.87188,2216.8,2216.1,0.2]
[1625119159353,13.67188,2216.8,2216.0,0.05]
[1625119159631,6.32005899,2216.7,2216.0,0.05]
[1625119159733,13.67188,2216.8,2216.0,0.05]
[1625119160034,20.30074852,2216.8,2216.0,0.05]
[1625119160135,5.01,2216.6,2216.0,0.05]
[1625119160233,6.7674,2216.3,2216.0,0.05]
[1625119160336,10.6176,2216.3,2216.0,0.05]
[1625119161031,3.8502,2216.3,2216.0,0.05]
[1625119164669,10.61726,2216.3,2216.0,0.05]
[1625119167077,10.36726,2216.3,2216.0,0.05]
[1625119171505,10.31726,2216.3,2215.6,6.22784487]
[1625119171707,10.31726,2216.3,2215.5,9.16236]
[1625119171907,10.31726,2216.3,2215.6,5.97402335]
[1625119172107,10.31726,2216.3,2215.5,9.16236]
[1625119172557,11.0,2216.2,2215.5,9.16236]
[1625119172657,17.76733,2216.2,2215.5,9.16236]
[1625119172821,17.76733,2216.2,2215.7,0.08]
[1625119173114,17.76733,2216.2,2215.5,9.16236]
[1625119174205,21.35463,2216.2,2215.5,9.16236]
[1625119174607,27.69144021,2216.2,2215.2,9.02328]
[1625119174708,0.02838452,2216.1,2215.2,9.16328]
[1625119174909,21.02175114,2216.2,2215.2,9.16328]
[1625119175076,21.02175114,2216.2,2215.3,0.08]
[1625119175277,14.5873,2216.2,2215.3,0.08]
[1625119175375,14.5873,2216.2,2215.2,9.16328]
[1625119175473,11.0,2216.2,2215.2,9.16328]
[1625119176430,6.76806,2216.0,2215.4,6.76768]
[1625119177127,6.76806,2216.0,2215.5,0.08]
[1625119177299,6.76806,2216.0,2215.4,6.76768]
[1625119179103,6.76806,2216.0,2215.2,9.16328]
[1625119180192,11.0,2216.2,2215.4,5.01]
[1625119180390,11.0,2216.2,2215.5,0.14]
[1625119180492,11.0,2216.2,2215.5,6.11653704]
[1625119180591,11.0,2216.2,2215.5,6.26495465]
[1625119180691,11.0,2216.2,2215.6,0.14]
[1625119180894,11.0,2216.2,2215.6,0.28]
[1625119181397,11.0,2216.2,2215.6,0.14]
[1625119183453,11.0,2216.2,2215.6,6.90741]
[1625119183856,11.0,2216.2,2215.7,0.04]
[1625119184566,11.0,2216.2,2215.7,6.80704]
[1625119184675,11.0,2216.2,2215.8,5.90545751]
[1625119184766,11.0,2216.2,2215.8,6.04545751]
[1625119184869,11.0,2216.2,2215.9,0.18]
[1625119185063,11.0,2216.2,2215.9,0.32]
[1625119185163,11.0,2216.2,2216.0,0.04]
[1625119185666,11.0,2216.2,2216.0,6.8061]
[1625119185764,11.0,2216.2,2216.0,0.04]
[1625119185964,11.0,2216.2,2215.9,0.14]
[1625119186513,11.0,2216.2,2215.6,9.02231]
[1625119186616,11.0,2216.2,2215.6,9.16231]
[1625119186917,11.0,2216.2,2215.8,6.76684]
[1625119187017,11.0,2216.2,2215.7,0.04]
[1625119187217,11.0,2216.2,2215.6,0.14]
[1625119188016,11.0,2216.2,2215.7,6.76718]